fUST/lending_fUST_20240425
["ID","MTS","AMOUNT","RATE_DAILY","PERIOD"]
[323420356,1713975053957,-637.46,0.0001726,2]
[323420358,1713975053967,-500.0,0.0001726,2]
[323420359,1713975053976,-500.0,0.0001726,2]
[323420361,1713975053985,-151.0,0.0001726,2]
[323420363,1713975053995,-500.0,0.0001726,2]
[323420366,1713975054006,-214.517686,0.0001726,2]
[323420367,1713975054015,-806.91,0.0001726,2]
[323420369,1713975054024,-1310.72,0.0001726,2]
[323420371,1713975054033,-500.0,0.0001726,2]
[323420374,1713975054043,-922.41,0.0001726,2]
[323420375,1713975054052,-152.664016,0.0001726,2]
[323420377,1713975054061,-1294.3,0.0001726,2]
[323420379,1713975054070,-776.68,0.0001726,2]
[323420381,1713975054080,-152.664016,0.0001726,2]
[323420383,1713975054090,-639.1,0.0001726,2]
[323420385,1713975054099,-500.0,0.0001726,2]
[323420387,1713975054108,-7426.29,0.0001726,2]
[323420389,1713975054117,-500.0,0.0001726,2]
[323420391,1713975054126,-500.0,0.0001726,2]
[323420393,1713975054135,-500.0,0.0001726,2]
[323420395,1713975054145,-500.0,0.0001726,2]
[323420397,1713975054154,-500.0,0.0001726,2]
[323420399,1713975054164,-1673.426036,0.0001735,2]
[323420401,1713975054173,-1859.308582,0.0001735,2]
[323420403,1713975054183,-1673.426035,0.0001735,2]
[323420405,1713975054192,-1859.308583,0.0001735,2]
[323420407,1713975054201,-371.861716,0.0001735,2]
[323420409,1713975054210,-769.775977,0.0001735,2]
[323420411,1713975054220,-167.342604,0.0001735,2]
[323420413,1713975054229,-557.792575,0.0001735,2]
[323420415,1713975054238,-203.6190757,0.00017452,2]
[323420417,1713975054247,-417.0,0.00017454,2]
[323420419,1713975054258,-150.0,0.00017454,2]
[323420421,1713975054267,-292.170461,0.00017454,2]
[323420423,1713975054276,-292.170461,0.00017454,2]
[323420425,1713975054286,-203.6190757,0.00017468,2]
[323420427,1713975054295,-203.6190757,0.00017468,2]
[323420429,1713975054304,-203.6190757,0.00017468,2]
[323420431,1713975054312,-203.6190757,0.00017468,2]
[323420433,1713975054321,-410.4317042,0.00017468,2]
[323420435,1713975054330,-203.6190757,0.00017468,2]
[323420437,1713975054340,-203.6190757,0.00017468,2]
[323420439,1713975054349,-203.6190757,0.00017468,2]
[323420441,1713975054358,-203.6190757,0.00017468,2]
[323420443,1713975054367,-203.6190757,0.00017468,2]
[323420445,1713975054376,-203.6190757,0.00017468,2]
[323420447,1713975054386,-50000.0,0.000175,2]
[323420449,1713975054397,-219.226602,0.000175,2]
[323420451,1713975054408,-219.226602,0.000175,2]
[323420453,1713975054418,-151.0,0.000175,2]
[323420455,1713975054430,-152.664016,0.000175,2]
[323420457,1713975054441,-152.664016,0.000175,2]
[323420459,1713975054454,-500.0,0.00017534,2]
[323420461,1713975054465,-500.0,0.00017534,2]
[323420463,1713975054475,-500.0,0.00017534,2]
[323420464,1713975054487,-1021.04,0.00017534,2]
[323420467,1713975054502,-500.0,0.00017534,2]
[323420469,1713975054517,-750.56,0.00017534,2]
[323420470,1713975054529,-500.0,0.00017534,2]
[323420472,1713975054540,-1006.57,0.00017534,2]
[323420474,1713975054553,-683.25,0.00017534,2]
[323420477,1713975054564,-500.0,0.00017534,2]
[323420479,1713975054575,-500.0,0.00017534,2]
[323420480,1713975054586,-500.0,0.00017534,2]
[323420482,1713975054597,-574.84,0.00017534,2]
[323420484,1713975054608,-1993.95,0.00017534,2]
[323420486,1713975054619,-500.0,0.00017534,2]
[323420488,1713975054629,-575.37211627,0.00017534,2]
[323420490,1713975054640,-500.0,0.00017534,2]
[323420492,1713975054650,-500.0,0.00017534,2]
[323420494,1713975054661,-500.0,0.00017534,2]
[323420496,1713975054671,-500.0,0.00017534,2]
[323420498,1713975054681,-500.0,0.00017534,2]
[323420500,1713975054693,-912.71,0.00017534,2]
[323420502,1713975054704,-611.19,0.00017534,2]
[323420505,1713975054715,-713.13,0.00017534,2]
[323420506,1713975054725,-562.35,0.00017534,2]
[323420509,1713975054736,-500.0,0.00017534,2]
[323420510,1713975054746,-602.56,0.00017534,2]
[323420512,1713975054765,-500.0,0.00017534,2]
[323420514,1713975054774,-500.0,0.00017534,2]
[323420516,1713975054784,-494.9160152,0.00017534,2]
[323420519,1713975054797,-563.3,0.00017534,2]
[323420521,1713975054807,-500.0,0.00017534,2]
[323420523,1713975054816,-2945.86,0.00017534,2]
[323420525,1713975054827,-500.0,0.00017534,2]
[323420527,1713975054837,-500.0,0.00017534,2]
[323420529,1713975054848,-500.0,0.00017534,2]
[323420530,1713975054857,-500.0,0.00017534,2]
[323420532,1713975054867,-500.0,0.00017534,2]
[323420534,1713975054877,-500.0,0.00017534,2]
[323420536,1713975054886,-500.0,0.00017534,2]
[323420538,1713975054895,-500.0,0.00017534,2]
[323420540,1713975054905,-500.0,0.00017534,2]
[323420542,1713975054914,-500.0,0.00017534,2]
[323420544,1713975054923,-500.0,0.00017534,2]
[323420546,1713975054933,-500.0,0.00017534,2]
[323420548,1713975054943,-500.0,0.00017534,2]
[323420550,1713975054952,-319.03532381,0.00017534,2]
[323420552,1713975054960,-500.0,0.00017534,2]
[323420554,1713975054969,-500.0,0.00017534,2]
[323420556,1713975054979,-527.68,0.00017534,2]
[323420558,1713975054988,-500.0,0.00017534,2]
[323420560,1713975054997,-619.616954,0.00017534,2]
[323420562,1713975055012,-1586.37,0.00017534,2]
[323420564,1713975055021,-500.0,0.00017534,2]
[323420566,1713975055030,-2297.43,0.00017534,2]
[323420567,1713975055039,-1159.11,0.00017534,2]
[323420568,1713975055048,-500.0,0.00017534,2]
[323420569,1713975055056,-846.04,0.00017534,2]
[323420570,1713975055065,-500.0,0.00017534,2]
[323420571,1713975055073,-500.0,0.00017534,2]
[323420572,1713975055082,-500.0,0.00017534,2]
[323420573,1713975055091,-500.0,0.00017534,2]
[323420574,1713975055100,-841.44,0.00017534,2]
[323420575,1713975055108,-500.0,0.00017534,2]
[323420576,1713975055117,-500.0,0.00017534,2]
[323420577,1713975055126,-500.0,0.00017534,2]
[323420578,1713975055135,-1881.77,0.00017534,2]
[323420579,1713975055143,-500.0,0.00017534,2]
[323420580,1713975055154,-500.0,0.00017534,2]
[323420581,1713975055163,-500.0,0.00017534,2]
[323420582,1713975055171,-734.09,0.00017534,2]
[323420583,1713975055180,-730.95,0.00017534,2]
[323420584,1713975055189,-829.11,0.00017534,2]
[323420585,1713975055198,-500.0,0.00017534,2]
[323420586,1713975055206,-500.0,0.00017534,2]
[323420587,1713975055215,-846.86,0.00017534,2]
[323420588,1713975055224,-1671.77,0.00017534,2]
[323420589,1713975055234,-500.0,0.00017534,2]
[323420590,1713975055243,-296.64409495,0.00017534,2]
[323420591,1713975055257,-500.0,0.00017534,2]
[323420592,1713975055265,-500.0,0.00017534,2]
[323420593,1713975055274,-500.0,0.00017534,2]
[323420594,1713975055284,-500.0,0.00017534,2]
[323420595,1713975055292,-641.71,0.00017534,2]
[323420596,1713975055302,-500.0,0.00017534,2]
[323420597,1713975055310,-500.0,0.00017534,2]
[323420598,1713975055319,-500.0,0.00017534,2]
[323420600,1713975055328,-690.46,0.00017534,2]
[323420601,1713975055337,-500.0,0.00017534,2]
[323420603,1713975055346,-586.3,0.00017534,2]
[323420605,1713975055355,-500.0,0.00017534,2]
[323420607,1713975055364,-500.0,0.00017534,2]
[323420609,1713975055373,-943.62,0.00017534,2]
[323420611,1713975055382,-1573.98,0.00017534,2]
[323420613,1713975055391,-500.0,0.00017534,2]
[323420615,1713975055400,-789.5,0.00017534,2]
[323420617,1713975055409,-2192.71,0.00017534,2]
[323420619,1713975055418,-500.0,0.00017534,2]
[323420621,1713975055427,-500.0,0.00017534,2]
[323420623,1713975055439,-500.0,0.00017534,2]
[323420625,1713975055448,-529.0,0.00017534,2]
[323420627,1713975055457,-500.0,0.00017534,2]
[323420629,1713975055466,-500.0,0.00017534,2]
[323420630,1713975055475,-500.0,0.00017534,2]
[323420633,1713975055487,-822.61,0.00017534,2]
[323420634,1713975055496,-500.0,0.00017534,2]
[323420636,1713975055512,-500.0,0.00017534,2]
[323420638,1713975055521,-2097.13,0.00017534,2]
[323420640,1713975055531,-998.74,0.00017534,2]
[323420654,1713975055647,-598.26,0.00017534,2]
[323420655,1713975055657,-1562.91,0.00017534,2]
[323420657,1713975055667,-500.0,0.00017534,2]
[323420659,1713975055678,-251.981946,0.00017534,2]
[323420661,1713975055688,-500.0,0.00017534,2]
[323420663,1713975055698,-251.981946,0.00017534,2]
[323420665,1713975055709,-590.03,0.00017534,2]
[323420668,1713975055721,-251.981946,0.00017534,2]
[323420669,1713975055731,-251.981946,0.00017534,2]
[323420672,1713975055742,-500.0,0.00017534,2]
[323420673,1713975055754,-500.0,0.00017534,2]
[323420675,1713975055766,-500.0,0.00017534,2]
[323420677,1713975055776,-293.87697452,0.00017534,2]
[323420679,1713975055786,-500.0,0.00017534,2]
[323420682,1713975055798,-500.0,0.00017534,2]
[323420683,1713975055809,-500.0,0.00017534,2]
[323420686,1713975055820,-2419.79,0.00017534,2]
[323420687,1713975055830,-500.0,0.00017534,2]
[323420689,1713975055842,-500.0,0.00017534,2]
[323420691,1713975055852,-292.170461,0.00017534,2]
[323420693,1713975055864,-500.0,0.00017534,2]
[323420695,1713975055876,-292.170461,0.00017534,2]
[323420698,1713975055889,-500.0,0.00017534,2]
[323420700,1713975055900,-500.0,0.00017534,2]
[323420702,1713975055911,-500.0,0.00017534,2]
[323420704,1713975055922,-1175.27,0.00017534,2]
[323420706,1713975055932,-9280.23,0.00017534,2]
[323420708,1713975055942,-1480.74,0.00017534,2]
[323420709,1713975055952,-629.51,0.00017534,2]
[323420711,1713975055962,-1960.03,0.00017534,2]
[323420713,1713975055971,-500.0,0.00017534,2]
[323420715,1713975055981,-1663.99680542,0.00017534,2]
[323420751,1713975056327,-1619.1123,0.00013698,2]
[323420754,1713975056345,-4342.7477,0.00013698,2]
[323420756,1713975056355,-5042.14048325,0.00013972,2]
[323420794,1713975056731,-919.71951675,0.00013972,2]
[323420797,1713975056740,-5961.86,0.00014246,2]
[323420799,1713975056754,-5961.86,0.0001452,2]
[323420801,1713975056763,-5961.86,0.00014794,2]
[323420803,1713975056773,-124.24319458,0.00017534,2]
[323420805,1713975056782,-1675.37,0.00017534,2]
[323420807,1713975056791,-1298.62,0.00017534,2]
[323420809,1713975056801,-500.0,0.00017534,2]
[323420811,1713975056810,-602.15,0.00017534,2]
[323420813,1713975056819,-1002.06,0.00017534,2]
[323420814,1713975056829,-500.0,0.00017534,2]
[323420816,1713975056838,-500.0,0.00017534,2]
[323420819,1713975056848,-971.73,0.00017534,2]
[323420820,1713975056858,-1533.51,0.00017534,2]
[323420823,1713975056868,-21495.2,0.00017534,2]
[323420825,1713975056877,-960.27,0.00017534,2]
[323420826,1713975056886,-500.0,0.00017534,2]
[323420828,1713975056895,-1047.76,0.00017534,2]
[323420830,1713975056905,-1293.81,0.00017534,2]
[323420833,1713975056915,-19586.79,0.00017534,2]
[323420834,1713975056927,-500.0,0.00017534,2]
[323420836,1713975056936,-545.29,0.00017534,2]
[323420838,1713975056946,-691.77,0.00017534,2]
[323420840,1713975056956,-4114.08337547,0.00017534,2]
[323420851,1713975057057,-3127.13662453,0.00017534,2]
[323420853,1713975057067,-1307.55,0.00017534,2]
[323420855,1713975057076,-381.51,0.00017534,2]
[323420857,1713975057086,-1985.19,0.00017534,2]
[323420859,1713975057097,-500.0,0.00017534,2]
[323420861,1713975057106,-5201.87856439,0.00017534,2]
[323422043,1713975297196,40000.0,0.00023,30]
[323422044,1713975311470,40850.0,0.00022,30]
[323422045,1713975311519,89019.83847413,0.00022,30]
[323422047,1713975566024,658.9994999,0.00010353,2]
[323422048,1713975567457,309.06975114,0.00011344,7]
[323422049,1713975642174,24900.0,0.00010341,2]
[323422051,1713975970915,214.2471723,0.00010114,2]
[323422053,1713976053104,150.0,0.00028,120]
[323422054,1713976077037,150.0,0.000286,120]
[323422055,1713976105471,150.0,0.000286,120]
[323422056,1713976117345,150.0,0.000286,120]
[323422057,1713976133245,2727.0,0.000286,120]
[323422058,1713976145522,-1394.68761216,0.00010998,2]
[323422059,1713976145545,-549.6120096,0.00010998,2]
[323422060,1713976145570,-86.25745596,0.00010999,2]
[323422061,1713976149471,199.01866453,0.00010899,2]
[323422062,1713976152486,24900.0,0.00010003,2]
[323422063,1713976154373,199.01866438,0.00010899,2]
[323422064,1713976158454,157.79100369,0.00010995,2]
[323422065,1713976158811,539.92860326,0.00010995,2]
[323422066,1713976159210,199.01866438,0.000109,2]
[323422067,1713976163396,235.6213964,0.00010995,2]
[323422068,1713976164423,199.01866438,0.000109,2]
[323422069,1713976166823,162.04590632,0.00010995,2]
[323422070,1713976168489,154.87609912,0.00010995,2]
[323422071,1713976169195,199.01866438,0.000109,2]
[323422072,1713976172913,329.68012038,0.00010995,2]
[323422073,1713976173993,7868.0386131,0.00010995,2]
[323422074,1713976174188,199.01866438,0.000109,2]
[323422075,1713976178821,408.93284854,0.00010995,2]
[323422076,1713976179204,199.01866438,0.00010901,2]
[323422077,1713976181616,154.87609912,0.00010995,2]
[323422078,1713976182078,283.4494848,0.00010995,2]
[323422079,1713976182983,154.87609912,0.00010995,2]
[323422080,1713976184233,199.01866438,0.00010901,2]
[323422081,1713976189192,199.01866438,0.00010901,2]
[323422082,1713976189555,154.87609912,0.00010995,2]
[323422083,1713976191382,568.10967635,0.00010995,2]
[323422084,1713976194370,199.01866438,0.00010901,2]
[323422085,1713976199198,199.01866438,0.00010902,2]
[323422086,1713976200394,2588.14074866,0.00010995,2]
[323422087,1713976200740,300.0,0.00010995,2]
[323422088,1713976203269,300.0,0.00010995,2]
[323422089,1713976204204,199.01866438,0.00010902,2]
[323422090,1713976204420,808.5884465,0.00010995,2]
[323422091,1713976204855,1490.54643083,0.00010995,2]
[323422092,1713976205679,154.87609912,0.00010995,2]
[323422093,1713976209214,199.01866438,0.00010902,2]
[323422094,1713976211144,5802.65810495,0.00010995,2]
[323422095,1713976214268,199.01866438,0.00010902,2]
[323422096,1713976219195,199.01866438,0.00010903,2]
[323422097,1713976224208,199.01866438,0.00010903,2]
[323422098,1713976229200,199.01866438,0.00010903,2]
[323422144,1713976231543,59169.7357574,0.00010995,2]
[323422169,1713976231897,-329.44588054,0.00010996,2]
[323422170,1713976231908,-264.56512796,0.00010996,2]
[323422173,1713976231918,-342.36902199,0.00010996,2]
[323422175,1713976231927,-30742.13497241,0.00010996,2]
[323422176,1713976231936,-495.4021727,0.00010996,2]
[323422179,1713976231946,-346.14911824,0.00010996,2]
[323422180,1713976231955,-247.41932501,0.00010996,2]
[323422182,1713976231964,-283.16913576,0.00010996,2]
[323422184,1713976231973,-378.73978424,0.00010996,2]
[323422186,1713976231983,-155.78913666,0.00010996,2]
[323422188,1713976231992,-807.32253758,0.00010996,2]
[323422190,1713976232002,-1338.06215802,0.00010996,2]
[323422192,1713976232012,-2588.14074866,0.00010997,2]
[323422194,1713976232023,-206.09782636,0.00010997,2]
[323422196,1713976232032,-381.19547188,0.00010997,2]
[323422198,1713976232042,-362.06078861,0.00010997,2]
[323422200,1713976232052,-1878.39217822,0.00010997,2]
[323422202,1713976232060,-46278.37850624,0.00011,2]
[323422205,1713976232078,-67541.20061688,0.00011,2]
[323422206,1713976232090,-516.20767634,0.00011,2]
[323422228,1713976237019,162.04590632,0.00010995,2]
[323422296,1713976237903,-316.494,0.00011,2]
[323422301,1713976237961,-454.50448088,0.00011,2]
[323422303,1713976237974,-294931.85776586,0.00011,2]
[323422305,1713976237984,-549.35315852,0.00011001,2]
[323422307,1713976237995,-155.79295829,0.00011001,2]
[323422309,1713976238006,-539.55596832,0.00011001,2]
[323422311,1713976238017,-257.54041744,0.00011001,2]
[323422314,1713976238028,-157.19408809,0.00011002,2]
[323422317,1713976238038,-173.56138073,0.00011008,2]
[323422320,1713976238048,-173.56138071,0.00011126,2]
[323422323,1713976238060,-36677.58778201,0.00011141,2]
[323422326,1713976238070,-173.56138071,0.00011244,2]
[323422329,1713976238081,-341.95663076,0.00011344,2]
[323422332,1713976238090,-1484.39666007,0.00011347,2]
[323422335,1713976238100,-158.71735789,0.00011347,2]
[323422337,1713976238110,-155.51957365,0.00011347,2]
[323422339,1713976238121,-1489.55578409,0.00011347,2]
[323422340,1713976238131,-213.77092791,0.00011347,2]
[323422342,1713976238141,-323.93421365,0.00011347,2]
[323422345,1713976238151,-883.26316222,0.00011347,2]
[323422347,1713976238162,-204.0428263,0.00011347,2]
[323422349,1713976238171,-155.63393416,0.00011358,2]
[323422350,1713976238181,-154.84515485,0.00011358,2]
[323422353,1713976238192,-471.31782646,0.00011358,2]
[323422354,1713976238202,-564.20205004,0.00011359,2]
[323422356,1713976238213,-977.06231715,0.00011359,2]
[323422358,1713976238222,-1200.38162123,0.00011366,2]
[323422360,1713976238232,-420.0,0.00012082,2]
[323422362,1713976238242,-420.0,0.00012095,2]
[323422364,1713976238253,-587.0,0.00013277,2]
[323422366,1713976238263,-587.0,0.00013304,2]
[323422368,1713976238274,-309.62843966,0.00013697,2]
[323422370,1713976238284,-204.54597996,0.00013697,2]
[323422372,1713976238295,-14662.47,0.00013698,2]
[323422374,1713976238305,-1360.41993,0.00013699,2]
[323422376,1713976238316,-812.3,0.00013699,2]
[323422378,1713976238325,-678.13508118,0.000138,2]
[323422380,1713976238336,-14662.47,0.00013972,2]
[323422382,1713976238346,-927.87368973,0.00014,2]
[323422384,1713976238355,-14662.47,0.00014246,2]
[323422386,1713976238365,-14662.47,0.0001452,2]
[323422388,1713976238377,-823.0,0.0001459,2]
[323422390,1713976238387,-823.0,0.00014634,2]
[323422392,1713976238397,-14662.47,0.00014794,2]
[323422394,1713976238408,-174.78422479,0.000149,2]
[323422396,1713976238419,-174.78422477,0.000149,2]
[323422398,1713976238428,-174.78422477,0.000149,2]
[323422400,1713976238437,-211.0,0.00014957,2]
[323422402,1713976238448,-154.84515485,0.00015,2]
[323422404,1713976238457,-938.69803003,0.00015,2]
[323422406,1713976238467,-2099.79903615,0.00015,2]
[323422408,1713976238476,-628.29006624,0.00015,2]
[323422410,1713976238486,-312.66661178,0.00015,2]
[323422411,1713976238496,-157.06659545,0.00015,2]
[323422412,1713976238507,-2776.29930889,0.00015,2]
[323422413,1713976238517,-1676.10589151,0.00015,2]
[323422414,1713976238527,-154.84515485,0.00015,2]
[323422415,1713976238537,-14662.47,0.00015068,2]
[323422416,1713976238547,-14662.47,0.00015342,2]
[323422417,1713976238556,-14662.47,0.00015616,2]
[323422418,1713976238567,-14662.47,0.0001589,2]
[323422419,1713976238577,-15215.38422108,0.00016,2]
[323422420,1713976238588,-238.93971122,0.00016,2]
[323422421,1713976238599,-5000.0,0.00016,2]
[323422422,1713976238610,-1152.0,0.00016033,2]
[323422423,1713976238621,-1152.0,0.00016098,2]
[323422424,1713976238632,-1666.82507459,0.00016113,2]
[323422425,1713976238644,-14662.47,0.00016164,2]
[323422426,1713976238654,-250.373711,0.00016236,2]
[323422427,1713976238664,-856.79413,0.00016236,2]
[323422428,1713976238674,-929.654291,0.00016236,2]
[323422430,1713976238684,-2469.976829,0.00016236,2]
[323422431,1713976238694,-2788.962874,0.00016236,2]
[323422432,1713976238703,-167.280027,0.00016236,2]
[323422433,1713976238712,-929.654291,0.00016236,2]
[323422434,1713976238721,-856.79413,0.00016236,2]
[323422435,1713976238731,-160.351996,0.00016236,2]
[323422436,1713976238741,-44444.0,0.00016338,2]
[323422438,1713976238752,-177.75,0.000164,2]
[323422440,1713976238761,-228.59475437,0.00016428,2]
[323422442,1713976238771,-500.0,0.00016438,2]
[323422444,1713976238780,-500.0,0.00016438,2]
[323422445,1713976238790,-500.0,0.00016438,2]
[323422447,1713976238803,-500.0,0.00016438,2]
[323422449,1713976238813,-500.0,0.00016438,2]
[323422452,1713976238824,-414.75664885,0.00016438,2]
[323422454,1713976238834,-500.0,0.00016438,2]
[323422455,1713976238846,-500.0,0.00016438,2]
[323422457,1713976238856,-507.72204126,0.00016438,2]
[323422460,1713976238868,-218.09013133,0.00016438,2]
[323422461,1713976238883,-500.0,0.00016438,2]
[323422463,1713976238894,-505.55196948,0.00016438,2]
[323422465,1713976238904,-500.0,0.00016438,2]
[323422468,1713976238914,-500.0,0.00016438,2]
[323422469,1713976238924,-500.0,0.00016438,2]
[323422472,1713976238934,-500.0,0.00016438,2]
[323422473,1713976238944,-500.0,0.00016438,2]
[323422475,1713976238954,-500.0,0.00016438,2]
[323422477,1713976238964,-500.0,0.00016438,2]
[323422479,1713976238974,-2301.59,0.00016438,2]
[323422481,1713976238984,-500.0,0.00016438,2]
[323422483,1713976238997,-505.60295844,0.00016438,2]
[323422486,1713976239009,-1000.0,0.00016438,2]
[323422488,1713976239020,-500.79984815,0.00016438,2]
[323422489,1713976239030,-500.66767919,0.00016438,2]
[323422491,1713976239041,-500.0,0.00016438,2]
[323422493,1713976239051,-492.3056364,0.00016438,2]
[323422496,1713976239062,-500.0,0.00016438,2]
[323422497,1713976239071,-500.63077636,0.00016438,2]
[323422499,1713976239081,-507.7455405,0.00016438,2]
[323422501,1713976239090,-502.18138017,0.00016438,2]
[323422503,1713976239099,-623.46639961,0.00016438,2]
[323422505,1713976239109,-500.0,0.00016438,2]
[323422507,1713976239119,-500.0,0.00016438,2]
[323422509,1713976239135,-500.0,0.00016438,2]
[323422511,1713976239144,-500.0,0.00016438,2]
[323422514,1713976239154,-500.0,0.00016438,2]
[323422515,1713976239164,-500.0,0.00016438,2]
[323422518,1713976239173,-500.0,0.00016438,2]
[323422520,1713976239182,-500.0,0.00016438,2]
[323422521,1713976239191,-500.0,0.00016438,2]
[323422522,1713976239201,-500.0,0.00016438,2]
[323422523,1713976239210,-500.0,0.00016438,2]
[323422524,1713976239219,-1012.75,0.00016438,2]
[323422525,1713976239228,-500.0,0.00016438,2]
[323422526,1713976239237,-500.0,0.00016438,2]
[323422527,1713976239246,-500.0,0.00016438,2]
[323422528,1713976239255,-541.15010446,0.00016438,2]
[323422529,1713976239264,-1065.98,0.00016438,2]
[323422530,1713976239273,-500.0,0.00016438,2]
[323422531,1713976239282,-500.0,0.00016438,2]
[323422532,1713976239292,-500.60779908,0.00016438,2]
[323422533,1713976239302,-500.0,0.00016438,2]
[323422534,1713976239311,-425.32897893,0.00016438,2]
[323422536,1713976239320,-501.14257175,0.00016438,2]
[323422538,1713976239331,-1324.66,0.00016438,2]
[323422539,1713976239340,-500.0,0.00016438,2]
[323422540,1713976239349,-500.0,0.00016438,2]
[323422541,1713976239358,-614.97,0.00016438,2]
[323422542,1713976239367,-500.0,0.00016438,2]
[323422544,1713976239380,-500.33849054,0.00016438,2]
[323422545,1713976239389,-500.0,0.00016438,2]
[323422546,1713976239398,-500.0,0.00016438,2]
[323422547,1713976239407,-500.0,0.00016438,2]
[323422548,1713976239416,-500.0,0.00016438,2]
[323422549,1713976239426,-502.14820261,0.00016438,2]
[323422550,1713976239435,-500.0,0.00016438,2]
[323422551,1713976239445,-500.81982307,0.00016438,2]
[323422552,1713976239454,-500.0,0.00016438,2]
[323422553,1713976239463,-500.0,0.00016438,2]
[323422554,1713976239472,-500.0,0.00016438,2]
[323422555,1713976239482,-528.40626369,0.00016438,2]
[323422557,1713976239492,-500.0,0.00016438,2]
[323422558,1713976239502,-500.0,0.00016438,2]
[323422560,1713976239511,-720.48,0.00016438,2]
[323422563,1713976239521,-500.0,0.00016438,2]
[323422565,1713976239531,-500.0,0.00016438,2]
[323422567,1713976239540,-500.0,0.00016438,2]
[323422569,1713976239549,-500.69191621,0.00016438,2]
[323422570,1713976239559,-500.0,0.00016438,2]
[323422572,1713976239568,-500.0,0.00016438,2]
[323422574,1713976239579,-500.0,0.00016438,2]
[323422575,1713976239589,-789.5,0.00016438,2]
[323422577,1713976239599,-500.23811405,0.00016438,2]
[323422579,1713976239609,-500.0,0.00016438,2]
[323422581,1713976239618,-610.11017992,0.00016438,2]
[323422582,1713976239630,-424.82908857,0.00016438,2]
[323422583,1713976239639,-500.0,0.00016438,2]
[323422585,1713976239648,-500.0,0.00016438,2]
[323422587,1713976239657,-500.0,0.00016438,2]
[323422589,1713976239665,-500.0,0.00016438,2]
[323422590,1713976239674,-500.0,0.00016438,2]
[323422592,1713976239683,-500.0,0.00016438,2]
[323422593,1713976239692,-574.94789502,0.00016438,2]
[323422594,1713976239701,-505.59078504,0.00016438,2]
[323422595,1713976239711,-529.0,0.00016438,2]
[323422596,1713976239720,-389.04537626,0.00016438,2]
[323422597,1713976239730,-500.0,0.00016438,2]
[323422598,1713976239739,-500.0,0.00016438,2]
[323422599,1713976239748,-505.92512138,0.00016438,2]
[323422601,1713976239757,-550.62,0.00016438,2]
[323422603,1713976239766,-610.42281034,0.00016438,2]
[323422604,1713976239776,-250.76794677,0.00016438,2]
[323422605,1713976239785,-500.0,0.00016438,2]
[323422606,1713976239797,-500.0,0.00016438,2]
[323422607,1713976239806,-509.99815414,0.00016438,2]
[323422608,1713976239815,-2097.13,0.00016438,2]
[323422609,1713976239824,-1562.91,0.00016438,2]
[323422610,1713976239834,-500.0,0.00016438,2]
[323422611,1713976239843,-151.36560727,0.00016438,2]
[323422612,1713976239852,-501.64298256,0.00016438,2]
[323422613,1713976239861,-598.26,0.00016438,2]
[323422614,1713976239871,-500.0,0.00016438,2]
[323422615,1713976239883,-500.0,0.00016438,2]
[323422616,1713976239893,-500.0,0.00016438,2]
[323422617,1713976239902,-500.0,0.00016438,2]
[323422618,1713976239911,-500.0,0.00016438,2]
[323422619,1713976239920,-500.0,0.00016438,2]
[323422620,1713976239929,-500.0,0.00016438,2]